[Event "CZE-ch U16 2020"]
[Site "Kouty nad Desnou"]
[Date "2020.03.09"]
[Round "4.2"]
[White "Kusa, Jakub"]
[Black "Placer, Sebastian"]
[Result "1/2-1/2"]
[ECO "C03"]
[WhiteElo "2188"]
[BlackElo "2189"]
[Annotator "ChessBase"]
[PlyCount "60"]
[EventDate "2020.03.07"]
[EventCountry "CZE"]
[SourceTitle "playchess.com"]
[Source "ChessBase"]
[SourceQuality "1"]
[TimeControl "5400+30"]

1. e4 {[%emt 0:00:00]} e6 {[%emt 0:00:00]} 2. d4 {[%emt 0:00:00]} d5 {[%emt 0:00:00]} 3. Nd2 {[%emt 0:00:00]} a6 4. Ngf3 {[%emt 0:00:15]} c5 {[%emt 0:00:29]} 5. exd5 {[%emt 0:00:19]} exd5 {[%emt 0:00:18]} 6. dxc5 {[%emt 0:00:15]} Bxc5 {[%emt 0:00:25]} 7. Nb3 {[%emt 0:00:11]} Bb6 {[%emt 0:00:36]} 8. Bd3 {[%emt 0:00:36]} Qe7+ {[%emt 0:00:22]} 9. Qe2 {[%emt 0:00:11]} Nc6 {[%emt 0:01:05]} 10. Bg5 {[%emt 0:01:24]} Qxe2+ {[%emt 0:01:37]} 11. Bxe2 {[%emt 0:02:14]} f6 {[%emt 0:01:00]} 12. Bd2 {[%emt 0:02:32]} Bf5 {[%emt 0:01:05]} 13. c3 {[%emt 0:01:17]} O-O-O {[%emt 0:01:43]} 14. O-O {[%emt 0:00:55]} Nge7 {[%emt 0:01:31]} 15. Rfe1 {[%emt 0:01:49]} Rhe8 {[%emt 0:01:35]} 16. Bf1 {[%emt 0:03:14]} Be4 {[%emt 0:03:06]} 17. Nfd4 {[%emt 0:04:53]} Nxd4 {[%emt 0:05:22]} 18. Nxd4 {[%emt 0:00:38]} Nf5 {[%emt 0:01:26]} 19. Be3 {[%emt 0:05:09]} Nxd4 {[%emt 0:01:44]} 20. Bxd4 {[%emt 0:00:32]} Bxd4 {[%emt 0:03:43]} 21. cxd4 {[%emt 0:00:39]} Kd7 {[%emt 0:01:47]} 22. f3 {[%emt 0:02:15]} Bf5 {[%emt 0:00:25]} 23. Rxe8 {[%emt 0:00:30]} Rxe8 {[%emt 0:00:10]} 24. Rc1 {[%emt 0:00:07]} Kd6 {[%emt 0:01:30]} 25. Kf2 {[%emt 0:01:56]} Re7 {[%emt 0:02:21]} 26. g3 {[%emt 0:02:27]} Re8 {[%emt 0:01:46]} 27. Be2 {[%emt 0:03:32]} Rc8 {[%emt 0:07:27]} 28. Rxc8 {[%emt 0:00:29]} Bxc8 {[%emt 0:00:09]} 29. Bd3 {[%emt 0:00:09]} h6 {[%emt 0:00:27]} 30. Ke3 {[%emt 0:02:09]} Bd7 {[%emt 0:04:09] Ke4 Ke5+} 1/2-1/2

[Event "CZE-ch U16 2020"]
[Site "Kouty nad Desnou"]
[Date "2020.03.09"]
[Round "4.3"]
[White "Gnojek, Petr"]
[Black "Nytra, Ondrej"]
[Result "0-1"]
[ECO "A08"]
[WhiteElo "2129"]
[BlackElo "2181"]
[Annotator "ChessBase"]
[PlyCount "106"]
[EventDate "2020.03.07"]
[EventCountry "CZE"]
[SourceTitle "playchess.com"]
[Source "ChessBase"]
[SourceQuality "1"]
[TimeControl "5400+30"]

1. Nf3 {[%emt 0:00:00]} d5 {[%emt 0:00:00]} 2. g3 {[%emt 0:00:00]} c5 {[%emt 0:00:06]} 3. Bg2 {[%emt 0:00:00]} Nc6 {[%emt 0:00:03]} 4. d3 {[%emt 0:00:00]} e5 {[%emt 0:00:07]} 5. Nbd2 {[%emt 0:00:00]} Be6 {[%emt 0:00:21]} 6. e4 {[%emt 0:00:04]} g6 {[%emt 0:01:14]} 7. O-O {[%emt 0:00:52]} Bg7 {[%emt 0:00:25]} 8. Re1 {[%emt 0:00:17]} Nge7 {[%emt 0:01:34]} 9. exd5 {[%emt 0:01:02]} Bxd5 {[%emt 0:00:49]} 10. Nf1 {[%emt 0:05:03]} f6 {[%emt 0:03:16]} 11. Ne3 {[%emt 0:01:08]} Be6 {[%emt 0:00:21]} 12. a4 {[%emt 0:05:26]} Qc7 {[%emt 0:03:15]} 13. c3 {[%emt 0:03:30]} Rd8 {[%emt 0:00:33]} 14. Qe2 {[%emt 0:00:27]} O-O {[%emt 0:01:03]} 15. Nc4 {[%emt 0:01:13]} Rd7 {[%emt 0:04:07]} 16. Be3 {[%emt 0:03:11]} b6 {[%emt 0:00:11]} 17. Rad1 {[%emt 0:08:48]} Rfd8 {[%emt 0:01:00]} 18. Qc2 {[%emt 0:08:41]} Kh8 {[%emt 0:08:59]} 19. h3 {[%emt 0:04:47]} e4 {[%emt 0:02:00]} 20. Bf4 {[%emt 0:00:50]} Qc8 {[%emt 0:00:05]} 21. Rxe4 {[%emt 0:00:47]} Bf5 {[%emt 0:00:05]} 22. Ree1 {[%emt 0:11:44]} g5 {[%emt 0:15:38]} 23. Bc1 {[%emt 0:06:15]} Qa6 {[%emt 0:27:10]} 24. Ne3 {[%emt 0:03:24]} Bxd3 {[%emt 0:03:04]} 25. Qb3 {[%emt 0:00:19]} c4 {[%emt 0:05:09]} 26. Qa3 {[%emt 0:05:48]} Bf8 {[%emt 0:01:11]} 27. Bf1 {[%emt 0:06:14]} Ng6 {[%emt 0:01:56]} 28. b4 {[%emt 0:00:30]} Nge5 {[%emt 0:02:14]} 29. Nxe5 {[%emt 0:06:46]} Nxe5 {[%emt 0:00:02]} 30. Bg2 {[%emt 0:00:06]} Qc8 {[%emt 0:04:02]} 31. Qa2 {[%emt 0:02:22]} h5 {[%emt 0:02:07]} 32. f4 {[%emt 0:04:07]} gxf4 {[%emt 0:00:18]} 33. gxf4 {[%emt 0:00:03]} Ng6 {[%emt 0:00:35]} 34. Qf2 {[%emt 0:00:18]} Rg7 {[%emt 0:01:30]} 35. Kh2 {[%emt 0:01:43]} Nxf4 {[%emt 0:01:07]} 36. Qh4 {[%emt 0:01:04]} Bd6 {[%emt 0:02:21]} 37. Kh1 {[%emt 0:01:56]} Nxg2 {[%emt 0:00:56]} 38. Nxg2 {[%emt 0:00:07]} Bg3 {[%emt 0:03:50]} 39. Qxh5+ {[%emt 0:01:41]} Rh7 {[%emt 0:00:03]} 40. Bh6 {[%emt 0:00:04]} Bxe1 {[%emt 0:01:00]} 41. Rxe1 {[%emt 0:00:09]} Rg8 {[%emt 0:02:03]} 42. Nf4 {[%emt 0:06:31]} Qb7+ {[%emt 0:02:21]} 43. Kh2 {[%emt 0:00:08]} Qc7 {[%emt 0:00:14]} 44. Qh4 {[%emt 0:00:40]} Qd8 {[%emt 0:00:00]} 45. a5 {[%emt 0:00:00]} Bf5 {[%emt 0:00:00]} 46. Re2 {[%emt 0:00:00]} bxa5 {[%emt 0:00:00]} 47. bxa5 {[%emt 0:00:00]} Qd6 {[%emt 0:00:00]} 48. Kh1 {[%emt 0:00:00]} Qd1+ {[%emt 0:00:00]} 49. Re1 {[%emt 0:00:00]} Be4+ {[%emt 0:00:00]} 50. Kh2 {[%emt 0:00:00]} Qd2+ {[%emt 0:00:00]} 51. Re2 {[%emt 0:00:00]} Qxe2+ {[%emt 0:00:00]} 52. Nxe2 {[%emt 0:00:00]} Rg2+ {[%emt 0:00:00]} 53. Kh1 {[%emt 0:00:00]} Rg4+ {[%emt 0:00:00]} 0-1

[Event "CZE-ch U16 2020"]
[Site "Kouty nad Desnou"]
[Date "2020.03.09"]
[Round "4.4"]
[White "Barak, David"]
[Black "Mach, Petr"]
[Result "1/2-1/2"]
[ECO "D85"]
[WhiteElo "2114"]
[BlackElo "2045"]
[Annotator "ChessBase"]
[PlyCount "40"]
[EventDate "2020.03.07"]
[EventCountry "CZE"]
[SourceTitle "playchess.com"]
[Source "ChessBase"]
[SourceQuality "1"]
[TimeControl "5400+30"]

1. d4 {[%emt 0:00:00]} Nf6 {[%emt 0:00:00]} 2. c4 {[%emt 0:00:00]} g6 {[%emt 0:00:00]} 3. Nc3 {[%emt 0:00:00]} d5 {[%emt 0:00:00]} 4. cxd5 {[%emt 0:00:00]} Nxd5 {[%emt 0:00:00]} 5. e4 {[%emt 0:00:00]} Nxc3 {[%emt 0:00:00]} 6. bxc3 {[%emt 0:00:00]} Bg7 {[%emt 0:00:00]} 7. Nf3 {[%emt 0:00:09]} c5 {[%emt 0:00:00]} 8. Rb1 {[%emt 0:00:08]} O-O {[%emt 0:00:00]} 9. Be2 {[%emt 0:00:08]} cxd4 {[%emt 0:00:03]} 10. cxd4 {[%emt 0:00:15]} Qa5+ {[%emt 0:00:03]} 11. Bd2 {[%emt 0:00:54]} Qxa2 {[%emt 0:00:04]} 12. O-O {[%emt 0:06:04]} Bg4 {[%emt 0:00:14]} 13. Bg5 {[%emt 0:17:01]} h6 {[%emt 0:00:04]} 14. Bh4 {[%emt 0:06:25]} g5 {[%emt 0:00:18]} 15. Bg3 {[%emt 0:00:05]} b6 {[%emt 0:20:26]} 16. Re1 {[%emt 0:13:13]} Nc6 {[%emt 0:14:31]} 17. Ra1 {[%emt 0:15:45]} Qb2 {[%emt 0:00:17]} 18. Rb1 {[%emt 0:00:19]} Qa2 {[%emt 0:00:26]} 19. Ra1 {[%emt 0:00:44]} Qb2 {[%emt 0:00:05]} 20. Rb1 {[%emt 0:00:05]} Qa2 {[%emt 0:00:22]} 1/2-1/2

[Event "CZE-ch U16 2020"]
[Site "Kouty nad Desnou"]
[Date "2020.03.09"]
[Round "4.5"]
[White "Jun, Rudolf Jr."]
[Black "Nezval, Filip"]
[Result "1/2-1/2"]
[ECO "C47"]
[WhiteElo "2104"]
[BlackElo "1940"]
[Annotator "ChessBase"]
[PlyCount "119"]
[EventDate "2020.03.07"]
[EventCountry "CZE"]
[SourceTitle "playchess.com"]
[Source "ChessBase"]
[SourceQuality "1"]
[TimeControl "5400+30"]

1. e4 {[%emt 0:00:00]} e5 {[%emt 0:00:04]} 2. Nf3 {[%emt 0:00:00]} Nc6 {[%emt 0:00:22]} 3. Nc3 {[%emt 0:00:34]} Nf6 {[%emt 0:00:10]} 4. d4 {[%emt 0:00:18]} exd4 {[%emt 0:00:45]} 5. Nd5 {[%emt 0:00:27]} d6 {[%emt 0:11:12]} 6. Nxd4 {[%emt 0:01:14]} Be6 {[%emt 0:09:06]} 7. Bb5 {[%emt 0:05:21]} Bd7 {[%emt 0:02:34]} 8. O-O {[%emt 0:01:57]} Be7 {[%emt 0:04:00]} 9. Bxc6 {[%emt 0:01:56]} bxc6 {[%emt 0:00:38]} 10. Nb4 {[%emt 0:02:27]} c5 {[%emt 0:01:32]} 11. Nbc6 {[%emt 0:00:41]} Bxc6 {[%emt 0:00:39]} 12. Nxc6 {[%emt 0:00:12]} Qd7 {[%emt 0:00:25]} 13. Nxe7 {[%emt 0:00:11]} Qxe7 {[%emt 0:00:16]} 14. Re1 {[%emt 0:02:25]} O-O {[%emt 0:01:16]} 15. f3 {[%emt 0:08:38]} Rab8 {[%emt 0:03:29]} 16. Rb1 {[%emt 0:02:40]} Qe6 {[%emt 0:01:07]} 17. b3 {[%emt 0:00:58]} a5 {[%emt 0:03:16]} 18. Bb2 {[%emt 0:02:24]} Nd7 {[%emt 0:02:14]} 19. f4 {[%emt 0:04:30]} f5 {[%emt 0:09:39]} 20. exf5 {[%emt 0:01:04]} Qxf5 {[%emt 0:00:28]} 21. Re7 {[%emt 0:00:51]} Rf7 {[%emt 0:05:07]} 22. Rxf7 {[%emt 0:01:14]} Qxf7 {[%emt 0:00:22]} 23. Qf3 {[%emt 0:08:52]} a4 {[%emt 0:05:01]} 24. c4 {[%emt 0:01:16]} Nb6 {[%emt 0:03:11]} 25. Re1 {[%emt 0:01:29]} axb3 {[%emt 0:00:38]} 26. axb3 {[%emt 0:00:08]} Re8 {[%emt 0:02:20]} 27. Rxe8+ {[%emt 0:02:09]} Qxe8 {[%emt 0:01:49]} 28. h3 {[%emt 0:00:51]} c6 {[%emt 0:04:03]} 29. f5 {[%emt 0:02:09]} d5 {[%emt 0:09:57]} 30. f6 {[%emt 0:05:50]} g6 {[%emt 0:00:25]} 31. Qf4 {[%emt 0:04:02]} Nd7 {[%emt 0:03:57]} 32. b4 {[%emt 0:07:16]} d4 {[%emt 0:03:19]} 33. bxc5 {[%emt 0:02:17]} Qe1+ {[%emt 0:00:19]} 34. Kh2 {[%emt 0:02:24]} Qe5 {[%emt 0:01:04]} 35. Qxe5 {[%emt 0:00:27]} Nxe5 {[%emt 0:00:02]} 36. Bxd4 {[%emt 0:00:10]} Nd7 {[%emt 0:05:38]} 37. g4 {[%emt 0:01:51]} g5 {[%emt 0:01:35]} 38. Kg3 {[%emt 0:02:24]} Kf7 {[%emt 0:00:13]} 39. Kf3 {[%emt 0:00:34]} Nxf6 {[%emt 0:00:19]} 40. Ke3 {[%emt 0:00:19]} Ne8 {[%emt 0:05:41]} 41. Be5 {[%emt 0:00:40]} Ke6 {[%emt 0:00:48]} 42. Bh8 {[%emt 0:01:05]} Nc7 {[%emt 0:00:00]} 43. Ke4 {[%emt 0:00:00]} Na6 {[%emt 0:00:00]} 44. Bd4 {[%emt 0:00:00]} Nc7 {[%emt 0:00:00]} 45. Bc3 {[%emt 0:00:00]} Ne8 {[%emt 0:00:00]} 46. Be5 {[%emt 0:00:00]} Nf6+ {[%emt 0:00:00]} 47. Kd4 {[%emt 0:00:00]} Ne8 {[%emt 0:00:00]} 48. Bg3 {[%emt 0:00:00]} Nf6 {[%emt 0:00:00]} 49. Be1 {[%emt 0:00:00]} h5 {[%emt 0:00:00]} 50. Bd2 {[%emt 0:00:00]} hxg4 {[%emt 0:00:00]} 51. hxg4 {[%emt 0:00:00]} Nxg4 {[%emt 0:00:00]} 52. Bxg5 {[%emt 0:00:00]} Nf6 {[%emt 0:00:00]} 53. Bf4 {[%emt 0:00:00]} Kf5 {[%emt 0:00:00]} 54. Bd6 {[%emt 0:00:00]} Ke6 {[%emt 0:00:00]} 55. Kd3 {[%emt 0:00:00]} Kf5 {[%emt 0:00:00]} 56. Kc3 {[%emt 0:00:00]} Ke4 {[%emt 0:00:00]} 57. Bf8 {[%emt 0:00:00]} Nd7 {[%emt 0:00:00]} 58. Be7 {[%emt 0:00:00]} Ne5 {[%emt 0:00:00]} 59. Bd6 {[%emt 0:00:00]} Nd7 {[%emt 0:00:00]} 60. Be7 1/2-1/2

[Event "CZE-ch U16 2020"]
[Site "Kouty nad Desnou"]
[Date "2020.03.09"]
[Round "4.6"]
[White "Neumann, Filip"]
[Black "Vecera, Dominik"]
[Result "1/2-1/2"]
[ECO "B27"]
[WhiteElo "2084"]
[BlackElo "1814"]
[Annotator "ChessBase"]
[PlyCount "61"]
[EventDate "2020.03.07"]
[EventCountry "CZE"]
[SourceTitle "playchess.com"]
[Source "ChessBase"]
[SourceQuality "1"]
[TimeControl "5400+30"]

1. e4 {[%emt 0:00:00]} c5 {[%emt 0:00:00]} 2. Nf3 {[%emt 0:00:00]} g6 {[%emt 0:00:00]} 3. h4 {[%emt 0:00:00]} h5 {[%emt 0:11:57]} 4. Bc4 {[%emt 0:00:10]} Nc6 {[%emt 0:03:55]} 5. d4 {[%emt 0:00:08]} cxd4 {[%emt 0:01:44]} 6. c3 {[%emt 0:00:01]} e6 {[%emt 0:03:35]} 7. cxd4 {[%emt 0:00:19]} d5 {[%emt 0:01:17]} 8. exd5 {[%emt 0:00:11]} exd5 {[%emt 0:00:01]} 9. Qe2+ {[%emt 0:00:19]} Nge7 {[%emt 0:05:21]} 10. Bb5 {[%emt 0:00:04]} Bg7 {[%emt 0:02:44]} 11. Bg5 {[%emt 0:00:50]} f6 {[%emt 0:16:59]} 12. Be3 {[%emt 0:02:15]} Kf7 {[%emt 0:02:02]} 13. Nc3 {[%emt 0:00:40]} Re8 {[%emt 0:02:46]} 14. O-O {[%emt 0:00:51]} a6 {[%emt 0:02:58]} 15. Bd3 {[%emt 0:00:09]} Bf5 {[%emt 0:00:58]} 16. Rac1 {[%emt 0:03:53]} Nb4 {[%emt 0:05:51]} 17. Bxf5 {[%emt 0:00:51]} Nxf5 {[%emt 0:00:12]} 18. a3 {[%emt 0:00:09]} Nc6 {[%emt 0:00:29]} 19. Qd3 {[%emt 0:01:20]} Nxe3 {[%emt 0:05:02]} 20. fxe3 {[%emt 0:00:15]} Bh6 {[%emt 0:01:18]} 21. Rce1 {[%emt 0:02:15]} f5 {[%emt 0:04:54]} 22. g3 {[%emt 0:11:09]} Qd6 {[%emt 0:10:34]} 23. Kg2 {[%emt 0:00:38]} Kg7 {[%emt 0:01:36]} 24. Nd2 {[%emt 0:01:11]} Re7 {[%emt 0:02:43]} 25. b4 {[%emt 0:03:09]} Rae8 {[%emt 0:00:59]} 26. Nd1 {[%emt 0:00:06]} b5 {[%emt 0:03:54]} 27. Nb3 {[%emt 0:00:27]} Na7 {[%emt 0:00:57]} 28. Nc5 {[%emt 0:06:01]} Nc8 {[%emt 0:00:48]} 29. Rf3 {[%emt 0:00:40]} Nb6 {[%emt 0:02:16]} 30. Re2 {[%emt 0:02:51]} Nc4 {[%emt 0:00:28]} 31. Qc3 {[%emt 0:00:13]} 1/2-1/2

[Event "CZE-ch U16 2020"]
[Site "Kouty nad Desnou"]
[Date "2020.03.09"]
[Round "4.7"]
[White "Volak, Simon"]
[Black "Ret, Adam Josef"]
[Result "1/2-1/2"]
[ECO "A01"]
[WhiteElo "1937"]
[BlackElo "1999"]
[Annotator "ChessBase"]
[PlyCount "85"]
[EventDate "2020.03.07"]
[EventCountry "CZE"]
[SourceTitle "playchess.com"]
[Source "ChessBase"]
[SourceQuality "1"]
[TimeControl "5400+30"]

1. b3 {[%emt 0:00:00]} d5 {[%emt 0:02:51]} 2. Bb2 {[%emt 0:00:00]} c5 {[%emt 0:00:39]} 3. e3 {[%emt 0:00:26]} Bf5 {[%emt 0:01:20]} 4. Nf3 {[%emt 0:00:28]} e6 {[%emt 0:00:45]} 5. Bb5+ {[%emt 0:02:47]} Nd7 {[%emt 0:00:28]} 6. O-O {[%emt 0:04:03]} a6 {[%emt 0:01:37]} 7. Bxd7+ {[%emt 0:01:55]} Qxd7 {[%emt 0:00:08]} 8. d3 {[%emt 0:00:23]} Nf6 {[%emt 0:00:52]} 9. Nbd2 {[%emt 0:00:54]} Be7 {[%emt 0:00:24]} 10. Qe2 {[%emt 0:02:55]} O-O {[%emt 0:01:17]} 11. Ne5 {[%emt 0:04:29]} Qc7 {[%emt 0:02:03]} 12. e4 {[%emt 0:02:50]} Bg6 {[%emt 0:04:06]} 13. Nxg6 {[%emt 0:03:28]} hxg6 {[%emt 0:00:08]} 14. Nf3 {[%emt 0:03:25]} dxe4 {[%emt 0:04:14]} 15. dxe4 {[%emt 0:00:36]} Qc6 {[%emt 0:00:09]} 16. Rfe1 {[%emt 0:09:34]} Rfd8 {[%emt 0:04:22]} 17. c4 {[%emt 0:03:55]} Qc7 {[%emt 0:03:56]} 18. Be5 {[%emt 0:07:04]} Qb6 {[%emt 0:05:37]} 19. Bc3 {[%emt 0:03:36]} Qc7 {[%emt 0:03:45]} 20. e5 {[%emt 0:12:36]} Ng4 {[%emt 0:05:11]} 21. Rad1 {[%emt 0:01:08]} Nh6 {[%emt 0:01:39]} 22. Rxd8+ {[%emt 0:03:48]} Rxd8 {[%emt 0:00:08]} 23. Rd1 {[%emt 0:00:11]} Nf5 {[%emt 0:03:24]} 24. Rd3 {[%emt 0:02:41]} Rxd3 {[%emt 0:02:07]} 25. Qxd3 {[%emt 0:00:07]} Qd8 {[%emt 0:00:14]} 26. Qxd8+ {[%emt 0:01:01]} Bxd8 {[%emt 0:00:06]} 27. Kf1 {[%emt 0:01:10]} Ne7 {[%emt 0:00:57]} 28. Ke2 {[%emt 0:00:32]} Nc6 {[%emt 0:00:25]} 29. Nd2 {[%emt 0:02:56]} Bc7 {[%emt 0:00:32]} 30. f4 {[%emt 0:01:48]} Kf8 {[%emt 0:00:21]} 31. Ne4 {[%emt 0:01:48]} b6 {[%emt 0:00:09]} 32. a3 {[%emt 0:01:32]} Ke7 {[%emt 0:03:03]} 33. Kd3 {[%emt 0:04:28]} a5 {[%emt 0:03:47]} 34. g3 {[%emt 0:01:33]} Bb8 {[%emt 0:01:35]} 35. Nf2 {[%emt 0:04:40]} g5 {[%emt 0:01:17]} 36. Ke4 {[%emt 0:01:22]} gxf4 {[%emt 0:00:13]} 37. gxf4 {[%emt 0:01:22]} Bc7 {[%emt 0:01:49]} 38. Ng4 {[%emt 0:02:18]} Kd7 {[%emt 0:02:13]} 39. Ne3 {[%emt 0:02:05]} g6 {[%emt 0:01:15]} 40. h3 {[%emt 0:02:56]} Bd8 {[%emt 0:00:41]} 41. Ng2 {[%emt 0:03:14]} Ne7 {[%emt 0:02:19]} 42. Ne3 {[%emt 0:00:21]} Nc6 {[%emt 0:00:30]} 43. Ng2 {[%emt 0:00:00]} 1/2-1/2

[Event "CZE-ch U16 2020"]
[Site "Kouty nad Desnou"]
[Date "2020.03.09"]
[Round "4.9"]
[White "Habenicht, Martin"]
[Black "Blaha, Marek"]
[Result "1/2-1/2"]
[ECO "A08"]
[WhiteElo "1970"]
[BlackElo "1836"]
[Annotator "ChessBase"]
[PlyCount "63"]
[EventDate "2020.03.07"]
[EventCountry "CZE"]
[SourceTitle "playchess.com"]
[Source "ChessBase"]
[SourceQuality "1"]
[TimeControl "5400+30"]

1. Nf3 {[%emt 0:00:00]} d5 {[%emt 0:00:00]} 2. g3 {[%emt 0:00:00]} c5 {[%emt 0:00:02]} 3. Bg2 {[%emt 0:00:00]} Nc6 {[%emt 0:00:46]} 4. d4 {[%emt 0:00:03]} cxd4 {[%emt 0:02:36]} 5. Nxd4 {[%emt 0:00:03]} e5 {[%emt 0:00:07]} 6. Nxc6 {[%emt 0:00:12]} bxc6 {[%emt 0:00:05]} 7. c4 {[%emt 0:00:14]} Bb4+ {[%emt 0:00:54]} 8. Bd2 {[%emt 0:03:21]} Bxd2+ {[%emt 0:00:21]} 9. Qxd2 {[%emt 0:00:09]} Nf6 {[%emt 0:00:14]} 10. Qg5 {[%emt 0:06:42]} O-O {[%emt 0:00:59]} 11. O-O {[%emt 0:00:47]} e4 {[%emt 0:01:03]} 12. Nc3 {[%emt 0:01:09]} Bb7 {[%emt 0:01:59]} 13. Rfd1 {[%emt 0:02:10]} Qb6 {[%emt 0:00:47]} 14. Rab1 {[%emt 0:08:28]} h6 {[%emt 0:00:18]} 15. Qf4 {[%emt 0:03:33]} Rad8 {[%emt 0:06:40]} 16. b4 {[%emt 0:04:06]} dxc4 {[%emt 0:02:05]} 17. Rxd8 {[%emt 0:01:45]} Rxd8 {[%emt 0:00:01]} 18. Nxe4 {[%emt 0:01:27]} Nxe4 {[%emt 0:01:25]} 19. Qxe4 {[%emt 0:00:43]} Qd4 {[%emt 0:07:19]} 20. Qxd4 {[%emt 0:10:28]} Rxd4 {[%emt 0:00:01]} 21. Rc1 {[%emt 0:02:36]} Rd2 {[%emt 0:09:02]} 22. Rxc4 {[%emt 0:13:39]} Rxe2 {[%emt 0:01:52]} 23. Rc1 {[%emt 0:03:44]} Rb2 {[%emt 0:06:15]} 24. a3 {[%emt 0:03:18]} Rb3 {[%emt 0:00:05]} 25. Rd1 {[%emt 0:02:40]} Kf8 {[%emt 0:00:54]} 26. Be4 {[%emt 0:10:00]} Ke7 {[%emt 0:00:32]} 27. Rd3 {[%emt 0:03:11]} Rxd3 {[%emt 0:00:23]} 28. Bxd3 {[%emt 0:00:01]} Kd6 {[%emt 0:00:19]} 29. Bc4 {[%emt 0:00:01]} f6 {[%emt 0:00:07]} 30. f4 {[%emt 0:00:18]} c5 {[%emt 0:00:36]} 31. Kf2 {[%emt 0:00:36]} cxb4 32. axb4 1/2-1/2

[Event "CZE-ch U16 2020"]
[Site "Kouty nad Desnou"]
[Date "2020.03.09"]
[Round "4.10"]
[White "Krizek, Krystof"]
[Black "Janouch, Jachym Stepan"]
[Result "1-0"]
[ECO "C60"]
[WhiteElo "1947"]
[BlackElo "1888"]
[Annotator "ChessBase"]
[PlyCount "89"]
[EventDate "2020.03.07"]
[EventCountry "CZE"]
[SourceTitle "playchess.com"]
[Source "ChessBase"]
[SourceQuality "1"]
[TimeControl "5400+30"]

1. e4 {[%emt 0:00:00]} e5 {[%emt 0:00:00]} 2. Nf3 {[%emt 0:00:00]} Nc6 {[%emt 0:00:00]} 3. Bb5 {[%emt 0:00:00]} Nge7 {[%emt 0:01:50]} 4. Nc3 {[%emt 0:00:00]} g6 {[%emt 0:00:29]} 5. h4 {[%emt 0:00:00]} d6 {[%emt 0:06:47]} 6. d4 {[%emt 0:01:47]} Bd7 {[%emt 0:00:32]} 7. Bg5 {[%emt 0:02:18]} Bg7 {[%emt 0:00:34]} 8. Nd5 {[%emt 0:01:22]} h6 {[%emt 0:05:51]} 9. Bf6 {[%emt 0:01:51]} Bxf6 {[%emt 0:03:25]} 10. Nxf6+ {[%emt 0:00:04]} Kf8 {[%emt 0:00:07]} 11. Nxd7+ {[%emt 0:00:24]} Qxd7 {[%emt 0:00:10]} 12. d5 {[%emt 0:00:12]} Qg4 {[%emt 0:00:53]} 13. dxc6 {[%emt 0:00:23]} Qxe4+ {[%emt 0:01:03]} 14. Qe2 {[%emt 0:00:48]} Qxe2+ {[%emt 0:01:41]} 15. Bxe2 {[%emt 0:01:02]} Nxc6 {[%emt 0:01:23]} 16. O-O-O {[%emt 0:01:09]} Kg7 {[%emt 0:00:39]} 17. c3 {[%emt 0:01:49]} f5 {[%emt 0:03:09]} 18. Nd2 {[%emt 0:01:43]} d5 {[%emt 0:04:06]} 19. Nb3 {[%emt 0:00:23]} Ne7 {[%emt 0:01:45]} 20. Nc5 {[%emt 0:01:13]} b6 {[%emt 0:01:04]} 21. Ne6+ {[%emt 0:00:24]} Kf6 {[%emt 0:00:11]} 22. Nxc7 {[%emt 0:00:02]} Rad8 {[%emt 0:00:11]} 23. Kb1 {[%emt 0:00:35]} Rd7 {[%emt 0:00:30]} 24. Nb5 {[%emt 0:00:23]} Nc6 {[%emt 0:00:42]} 25. Rd2 {[%emt 0:00:42]} Rhd8 {[%emt 0:00:23]} 26. Rhd1 {[%emt 0:00:15]} a6 {[%emt 0:00:36]} 27. Na3 {[%emt 0:00:05]} b5 {[%emt 0:00:09]} 28. Nc2 {[%emt 0:00:41]} g5 {[%emt 0:00:34]} 29. hxg5+ {[%emt 0:01:35]} hxg5 {[%emt 0:00:07]} 30. Bf3 {[%emt 0:01:25]} Ne7 {[%emt 0:00:22]} 31. Nb4 {[%emt 0:00:47]} e4 {[%emt 0:00:15]} 32. Be2 {[%emt 0:00:08]} a5 {[%emt 0:01:10]} 33. Nc2 {[%emt 0:01:46]} b4 {[%emt 0:00:04]} 34. c4 {[%emt 0:01:14]} Ke5 {[%emt 0:00:12]} 35. cxd5 {[%emt 0:01:34]} Nxd5 {[%emt 0:00:08]} 36. Kc1 {[%emt 0:00:59]} f4 {[%emt 0:01:33]} 37. Bc4 {[%emt 0:00:42]} g4 {[%emt 0:00:18]} 38. Rxd5+ {[%emt 0:00:24]} Rxd5 {[%emt 0:00:06]} 39. Rxd5+ {[%emt 0:00:01]} Rxd5 {[%emt 0:00:07]} 40. Bxd5 {[%emt 0:00:05]} Kxd5 {[%emt 0:00:08]} 41. Kd2 {[%emt 0:00:22]} Kc4 {[%emt 0:00:27]} 42. b3+ {[%emt 0:00:18]} Kd5 {[%emt 0:00:07]} 43. g3 {[%emt 0:00:30]} Ke5 {[%emt 0:00:06]} 44. Ke2 {[%emt 0:00:37]} e3 {[%emt 0:00:46]} 45. gxf4+ {[%emt 0:00:40]} 1-0

[Event "CZE-ch U16 2020"]
[Site "Kouty nad Desnou"]
[Date "2020.03.09"]
[Round "4.12"]
[White "Kolar, Jan"]
[Black "Jirousek, Jan"]
[Result "1-0"]
[ECO "B15"]
[WhiteElo "1760"]
[BlackElo "1887"]
[Annotator "NA"]
[PlyCount "69"]
[EventDate "2020.03.07"]
[EventCountry "CZE"]
[SourceTitle "playchess.com"]
[Source "ChessBase"]
[SourceQuality "1"]
[TimeControl "5400+30"]

1. e4 {[%emt 0:00:00]} c6 {[%emt 0:00:05]} 2. d4 {[%emt 0:00:00]} d5 {[%emt 0:00:02]} 3. Nc3 {[%emt 0:00:00]} dxe4 {[%emt 0:00:02]} 4. Nxe4 {[%emt 0:00:00]} Nf6 {[%emt 0:00:13]} 5. Nxf6+ {[%emt 0:00:30]} exf6 {[%emt 0:00:11]} 6. c3 {[%emt 0:00:41]} Bd6 {[%emt 0:00:05]} 7. Bd3 {[%emt 0:00:12]} O-O {[%emt 0:00:17]} 8. Ne2 {[%emt 0:00:23]} Re8 {[%emt 0:01:18]} 9. Qc2 {[%emt 0:00:24] B15: Caro-Kann: 3 Nc3: 3...g6 and 3...dxe4 4 Nxe4 Nf6 5 Nxf6+ exf6.} h5 {[%emt 0:04:01] 9...h5 scores better than 9...h6.} 10. Be3 {[%emt 0:01:51]} Be6 {[%emt 0:03:09]} 11. O-O-O {[%emt 0:03:09]} Qa5 {[%emt 0:01:48] [#]} 12. b3 $146 {[%emt 0:06:19]} ({Predecessor:} 12. a3 Nd7 13. Kb1 b5 14. Nf4 Bxf4 15. Bxf4 Bd5 16. Rhg1 Nf8 17. g4 hxg4 18. Rxg4 {0-1 (65) Gutenev,A (2456)-Tomashevsky,E (2705) Sochi 2018}) 12... Nd7 {[%emt 0:05:02]} 13. Ng3 {[%emt 0:06:03]} c5 {[%emt 0:15:14]} 14. Nf5 {[%emt 0:03:37]} Bf8 {[%emt 0:07:33]} 15. h3 {[%emt 0:09:37]} cxd4 {[%emt 0:10:24]} 16. Nxd4 {[%emt 0:03:50]} Rac8 {[%emt 0:03:27]} 17. Bd2 {[%emt 0:02:02]} Ne5 {[%emt 0:10:18]} 18. Bh7+ {[%emt 0:08:02]} Kh8 {[%emt 0:00:12]} 19. Nxe6 {[%emt 0:00:10]} fxe6 {[%emt 0:02:16]} 20. f4 {[%emt 0:02:26]} Nc6 {[%emt 0:04:41]} 21. Kb1 {[%emt 0:02:11]} Ne7 {[%emt 0:16:48]} 22. Be4 {[%emt 0:03:45]} Qc7 {[%emt 0:03:54]} 23. Rhe1 {[%emt 0:02:36]} b5 {[%emt 0:07:08]} 24. Bf3 {[%emt 0:02:57]} g6 {[%emt 0:02:06]} 25. Rxe6 {[%emt 0:03:46]} Bg7 $18 {[%emt 0:00:39]} 26. f5 {[%emt 0:01:16]} Nxf5 {[%emt 0:00:57]} 27. Rxe8+ {[%emt 0:00:16]} Rxe8 {[%emt 0:00:07]} 28. Bxh5 {[%emt 0:00:55]} gxh5 {[%emt 0:00:42]} 29. Qxf5 {[%emt 0:00:18]} Re5 {[%emt 0:01:07]} 30. Qf3 {[%emt 0:00:56]} Qc8 {[%emt 0:00:39]} 31. g4 {[%emt 0:03:10]} hxg4 {[%emt 0:00:29]} 32. hxg4 {[%emt 0:00:21]} f5 {[%emt 0:00:29]} 33. Bg5 {[%emt 0:01:37]} Re8 {[%emt 0:00:30]} 34. gxf5 {[%emt 0:01:49]} Qxc3 {[%emt 0:00:32]} 35. Qh5+ {[%emt 0:00:09]} 1-0